Workbook

Sheet power v slider
A1: % transmitted | B1: 390 (UV) | C1: 475 (Blue) | D1: 542 (Green) | E1: 633 (Red)
A2: 25 | B2: 90.8 | C2: 115 | D2: 128 | E2: 81.5
A3: 33 | B3: 116 | C3: 148 | D3: 166 | E3: 106
A4: 50 | B4: 162 | C4: 203 | D4: 241 | E4: 157
A5: 67 | B5: 203 | C5: 254 | D5: 310 | E5: 206
A6: 75 | B6: 220 | C6: 276 | D6: 339 | E6: 227
A7: 100 | B7: 267 | C7: 335 | D7: 432 | E7: 287
A9: Mean | B9: 234 | C9: 310 | D9: 394 | E9: 267
A10: through pdms
A11: 100 | B11: 204 | C11: 281 | D11: 355 | E11: 235
A12: 100 | B12: 206 | C12: 276 | D12: 348 | E12: 243
A13: 100 | B13: 206 | C13: 278 | D13: 346 | E13: 244
A14: mean
A15: 100 | B15: =AVERAGE(B11:B13) -> 205.3333333 | C15: =AVERAGE(C11:C13) -> 278.3333333 | D15: 349.6666667 | E15: 240.6666667
A16: dif | B16: =B7-B15 -> 61.66666667 | C16: =C7-C15 -> 56.66666667 | D16: 82.33333333 | E16: 46.33333333
A17: % | B17: =B16/B7 -> 0.2309612984 | C17: =C16/C7 -> 0.1691542289 | D17: 0.1905864198 | E17: 0.1614401858
B27: mW/mm2
A29: % transmitted | B29: 390 (UV) | C29: 475 (Blue) | D29: 542 (Green) | E29: 633 (Red)
A30: 0 | B30: 0 | C30: 0 | D30: 0 | E30: 0
A31: 25 | B31: =(B2/1000)/(0.03) -> 3.026666667 | C31: =(C2/1000)/(0.03) -> 3.833333333 | D31: 4.266666667 | E31: 2.716666667
A32: 33 | B32: 3.866666667 | C32: =(C3/1000)/(0.03) -> 4.933333333 | D32: 5.533333333 | E32: 3.533333333
A33: 50 | B33: 5.4 | C33: 6.766666667 | D33: 8.033333333 | E33: 5.233333333
A34: 67 | B34: 6.766666667 | C34: 8.466666667 | D34: 10.33333333 | E34: 6.866666667
A35: 75 | B35: 7.333333333 | C35: 9.2 | D35: 11.3 | E35: 7.566666667
A36: 100 | B36: 8.9 | C36: 11.16666667 | D36: 14.4 | E36: 9.566666667
A38: 100 | B38: =(B9/1000)/(0.03) -> 7.8 | C38: 10.33333333 | D38: 13.13333333 | E38: 8.9
A40: 100 | B40: =(B11/1000)/(0.03) -> 6.8 | C40: 9.366666667 | D40: 11.83333333 | E40: 7.833333333
A41: 100 | B41: =(B12/1000)/(0.03) -> 6.866666667 | C41: 9.2 | D41: 11.6 | E41: 8.1
A42: 100 | B42: =(B13/1000)/(0.03) -> 6.866666667 | C42: 9.266666667 | D42: 11.53333333 | E42: 8.133333333
A43: Mean
A44: 100 | B44: =(B15/1000)/(0.03) -> 6.844444444 | C44: =(C15/1000)/(0.03) -> 9.277777778 | D44: 11.65555556 | E44: 8.022222222
A45: dif | B45: =B36-B44 -> 2.055555556 | C45: =C36-C44 -> 1.888888889 | D45: 2.744444444 | E45: 1.544444444
A46: loss from PDMS | B46: =B45/B36 -> 0.2309612984 | C46: =C45/C36 -> 0.1691542289 | D46: 0.1905864198 | E46: 0.1614401858
A49: 100 | B49: 7
A50: 100 | B50: 9
A51: 100 | B51: 12
A52: 100 | B52: 8
F69: UV through PDMS: - 23% | H69: so use mW/mm2 * 0.77
F70: Blue through PDMS: -17% | H70: so use mW/mm2 * 0.87
F71: Green through PDMS: -19% | H71: so use mW/mm2 * 0.81
F72: Red through PDMS: -16% | H72: so use mW/mm2 * 0.84
A73: With corrections for PDMS
A75: % transmitted | B75: 390 (UV) | C75: 475 (Blue) | D75: 542 (Green) | E75: 633 (Red)
A76: 0 | B76: 0 | C76: 0 | D76: 0 | E76: 0
A77: =A31 -> 25 | B77: =B31*0.77 -> 2.330533333 | C77: =C31*0.87 -> 3.335 | D77: =D31*0.81 -> 3.456 | E77: =E31*0.84 -> 2.282
A78: 33 | B78: =B32*0.77 -> 2.977333333 | C78: =C32*0.87 -> 4.292 | D78: =D32*0.81 -> 4.482 | E78: =E32*0.84 -> 2.968
A79: 50 | B79: 4.158 | C79: 5.887 | D79: 6.507 | E79: 4.396
A80: 67 | B80: 5.210333333 | C80: 7.366 | D80: 8.37 | E80: 5.768
A81: 75 | B81: 5.646666667 | C81: 8.004 | D81: 9.153 | E81: 6.356
A82: 100 | B82: 6.853 | C82: 9.715 | D82: 11.664 | E82: 8.036

Sheet Red spectrum
A1: wavelength | B1: Power
A2: 400 | B2: 445
A3: 540 | B3: 382
A4: 570 | B4: 345
A5: 580 | B5: 332
A6: 590 | B6: 322
A7: 600 | B7: 315
A8: 610 | B8: 308
A9: 620 | B9: 297
A10: 630 | B10: 285
A11: 640 | B11: 277
